Cogmind - Beta 14 @@@ ROGUE MODE // 2024.11.22 @ 07:04:38 Player: Fangrelle Result: Destroyed by YI-UF0 with YI-UF0's Doublenader Performance ------------- Evolutions (0) 0 Regions Visited (4) 800 Robots Destroyed (43) 215 Value Destroyed (945) 945 Prototype IDs (23) 460 Alien Tech Used (0) 0 Bonus (328) 328 TOTAL SCORE: 2748 Bonus ------- Follower Combat Kills 28 Aligned with FarCom 300 Cogmind --------- Core Integrity 0/250 Matter 299/300 Energy 100/100 System Corruption 0% Temperature Cool (0) Movement Walking (470) Ox5 Location -9/Mines Parts ------- > --- POWER (1) -------- (None) > --- PROPULSION (2) --- Carbon-fiber Leg > --- UTILITY (2) ------ Huge Storage Unit Targeting Computer > --- WEAPON (2) ------- Heavy Assault Rifle > --- INVENTORY (25) --- Nuclear Core Reinforced Deuterium Engine Fission Core Wheel Improved Heat Sink High-capacity Storage Unit Targeting Computer ECM Suite Tractor Beam Decoy Drone Bay Beam Rifle Beam Rifle YOLO Cannon Heavy Assault Rifle Heavy Assault Rifle Heavy Assault Rifle Light Cannon Light Cannon Grenade Launcher Grenade Launcher Datajack Mining Laser Peak State ------------ > --- POWER ------------ Ion Engine > --- PROPULSION ------- Carbon-fiber Leg Carbon-fiber Leg > --- UTILITY ---------- Huge Storage Unit Targeting Computer > --- WEAPON ----------- Heavy Assault Rifle Heavy Assault Rifle > --- INVENTORY -------- Nuclear Core Reinforced Deuterium Engine Fission Core Wheel Improved Heat Sink High-capacity Storage Unit Targeting Computer ECM Suite Tractor Beam Decoy Drone Bay Beam Rifle Beam Rifle YOLO Cannon Heavy Assault Rifle Heavy Assault Rifle Heavy Assault Rifle Light Cannon Light Cannon Grenade Launcher Grenade Launcher Datajack Mining Laser [Rating: 20] Favorites ----------- Power Ion Engine Engine Ion Engine Propulsion Light Treads Treads Light Treads Leg Carbon-fiber Leg Wheel Wheel Utility Huge Storage Unit Storage Huge Storage Unit Processor Targeting Computer Weapon Heavy Assault Rifle Energy Gun Small Laser Ballistic Gun Heavy Assault Rifle Launcher Grenade Launcher Build | -11 -10 -10 -10 -9 ------- Run | Yrd Mat Min Exi Min Slots Evolved . | . . . . . Power . | . . . . . Propulsion . | . . . . . Utility . | . . . . . Weapon . | . . . . . Parts Attached 20 | . 17 2 . 1 Power 2 | . 2 . . . Engine 2 | . 2 . . . Core . | . . . . . Reactor . | . . . . . Propulsion 6 | . 4 2 . . Treads 3 | . 3 . . . Leg 2 | . . 2 . . Wheel 1 | . 1 . . . Hover . | . . . . . Flight . | . . . . . Utility 2 | . 2 . . . Device . | . . . . . Storage 1 | . 1 . . . Processor 1 | . 1 . . . Hackware . | . . . . . Protection . | . . . . . Artifact . | . . . . . Weapon 10 | . 9 . . 1 Energy Gun 2 | . 2 . . . Energy Cannon . | . . . . . Ballistic Gun 6 | . 5 . . 1 Ballistic Cannon . | . . . . . Launcher 2 | . 2 . . . Special Weapon . | . . . . . Impact Weapon . | . . . . . Slashing Weapon . | . . . . . Piercing Weapon . | . . . . . Special Melee Weapon . | . . . . . Unidentified Prototypes . | . . . . . Parts Lost 8 | . 4 1 . 3 Power 2 | . 1 . . 1 Propulsion 3 | . 2 . . 1 Utility . | . . . . . Weapon 3 | . 1 1 . 1 Highest Loss Streak 2 | . 1 1 . 2 To Critical Strikes 1 | . . . . 1 Average Slot Usage (%) 89 | . 93 90 85 72 Engine 12 | . 12 14 14 . Treads 12 | . 22 7 . . Leg 9 | . . 12 28 14 Storage 16 | . 20 14 14 14 Processor 11 | . 7 14 14 14 Ballistic Gun 25 | . 27 26 14 28 Peak Build Rating 20 | . 11 17 18 20 Average Rating 12 | . 9 14 16 16 On Entrance 11 | 6 6 11 15 18 Naked Turns . | . . . . . Heaviest Build 94 | 10 94 91 88 91 Greatest Support 40 | 20 40 30 30 30 Greatest Overweight (x) 9 | . 9 4 2 5 Average Overweight (x) 3 | . 3 3 2 4 Largest Inventory Capacity 25 | . 25 25 25 25 Average Capacity 24 | . 24 25 25 25 Most Carried 25 | . 23 25 25 24 Average Carried 19 | . 14 23 24 24 Final Capacity 25 | 8 25 25 25 25 Final Carried 25 | 6 23 21 25 24 Class Distribution -------------------- 100% | Mutant Dominant Class ---------------- Mutant | -10/Materials Mutant | -10/Mines Mutant | -10/Exiles Mutant | -9/Mines Resources | -11 -10 -10 -10 -9 ----------- Run | Yrd Mat Min Exi Min Matter Collected 939 | 200 451 270 . 18 Remotely . | . . . . . Salvage Created 1241 | . 1177 44 . 20 Parts 80 | . 71 8 . 1 Haulers Intercepted 2 | . 2 . . . Recyclers Shooed . | . . . . . Parts Field Recycled . | . . . . . Retrieved Matter . | . . . . . Parts Self-Destructed . | . . . . . Prevented . | . . . . . Kills | -11 -10 -10 -10 -9 ------- Run | Yrd Mat Min Exi Min Combat Hostiles Destroyed 31 | . 26 3 . 2 Guns 25 | . 20 3 . 2 AOE 6 | . 6 . . . Classes Destroyed 9 | . 9 . . . Builder 1 | . 1 . . . Tunneler 2 | . 2 . . . Hauler 2 | . 2 . . . Recycler 1 | . 1 . . . Mechanic 1 | . 1 . . . Operator 2 | . 2 . . . Watcher 3 | . 3 . . . Swarmer 11 | . 6 3 . 2 Grunt 20 | . 20 . . . Best Kill Streak 5 | . 5 3 . 2 Combat Bots Only 5 | . 5 3 . 2 Max Kills in Single Turn 4 | . 4 1 . 1 Gunslinging . | . . . . . Exploded 4 | . 4 . . . Melee . | . . . . . Uniques/NPCs Destroyed . | . . . . . Combat | -11 -10 -10 -10 -9 -------- Run | Yrd Mat Min Exi Min Hostile Shots Fired 163 | . 133 20 . 10 Missed 41 | . 32 8 . 1 Damage Taken 1437 | . 1063 92 . 282 Core 268 | . 178 . . 90 Absorbed by Shields . | . . . . . Core Remaining (%) 100 | 100 . . . . Volleys Fired 110 | . 99 7 . 4 Largest 2 | . 2 2 . 2 Hottest 60 | . 60 46 . 46 Shots Fired 219 | . 198 13 . 8 Gun 215 | . 194 13 . 8 Cannon . | . . . . . Launcher 4 | . 4 . . . Special . | . . . . . Kinetic 212 | . 191 13 . 8 Thermal 3 | . 3 . . . Explosive 4 | . 4 . . . Electromagnetic . | . . . . . Robot Hit Streak 10 | . 10 5 . 6 Robot Miss Streak 4 | . 4 4 . 2 Penetration Max . | . . . . . Secondary Targets 3 | . 2 . . 1 Max Gunslinging Chain 1 | . 1 . . 1 Shots Hit Robots 127 | . 116 5 . 6 Core Hits 66 | . 61 3 . 2 Critical Kills . | . . . . . Critical Parts Destroyed . | . . . . . Critical Strikes . | . . . . . Melee Attacks . | . . . . . Impact . | . . . . . Slashing . | . . . . . Piercing . | . . . . . Sneak Attacks . | . . . . . Combat Hostiles . | . . . . . Follow-up Attacks . | . . . . . Damage Inflicted 1955 | . 1756 110 . 89 Guns 1561 | . 1367 105 . 89 Cannons . | . . . . . Explosions 389 | . 389 . . . Melee . | . . . . . Ramming 5 | . . 5 . . Kinetic 1529 | . 1335 105 . 89 Thermal 32 | . 32 . . . Explosive 389 | . 389 . . . Electromagnetic . | . . . . . Impact . | . . . . . Slashing . | . . . . . Piercing . | . . . . . Highest Corruption . | . . . . . Average Corruption . | . . . . . Corruption Purged . | . . . . . Corruption Blocked . | . . . . . Overload Shots . | . . . . . Overflow Damage . | . . . . . Projectiles . | . . . . . Explosions . | . . . . . Melee . | . . . . . Knockbacks . | . . . . . Impact . | . . . . . Kinetic . | . . . . . Secondary . | . . . . . Self-Inflicted Damage . | . . . . . Shots . | . . . . . Rammed . | . . . . . Targets Rammed 1 | . . 1 . . Kicked 1 | . . 1 . . Crushed . | . . . . . Highest Temperature 19 | . 19 . . 4 Average Temperature 4 | . 4 . . 4 Received Heat Transfer 531 | . 513 . . 18 Siege Activations . | . . . . . Robots Corrupted . | . . . . . Combat Hostiles . | . . . . . Parts Fried . | . . . . . Impact Corruptions . | . . . . . Robots Melted . | . . . . . Combat Hostiles . | . . . . . Parts Melted . | . . . . . Heat Transferred 75 | . 75 . . . Parts Sabotaged . | . . . . . Parts Stolen . | . . . . . Parts Stripped . | . . . . . Power Chain Reactions . | . . . . . Alert | -11 -10 -10 -10 -9 ------- Run | Yrd Mat Min Exi Min Peak Influence 313 | . 313 106 . 54 Initial 106 | . . 106 . . Average 92 | . 151 36 . 42 Maximum Alert Level 1 | . 1 . . . Low Security (%) 82 | . 64 100 . 100 Level 1 17 | . 35 . . . Level 2 . | . . . . . Level 3 . | . . . . . Level 4 . | . . . . . Level 5 . | . . . . . High Security . | . . . . . Max Security . | . . . . . Squads Dispatched 8 | . 8 . . . Investigation 6 | . 6 . . . Extermination . | . . . . . Reinforcement 2 | . 2 . . . Assault . | . . . . . Garrison . | . . . . . Intercept . | . . . . . Searches Triggered . | . . . . . Construction Impeded . | . . . . . Haulers Reinforced . | . . . . . Active Scanning Responses . | . . . . . Cargo Convoy Interrupts . | . . . . . Stealth | -11 -10 -10 -10 -9 --------- Run | Yrd Mat Min Exi Min Distress Signals 1 | . 1 . . . Communications Jammed . | . . . . . Distress Signals . | . . . . . Times Spotted 57 | . 47 6 . 4 Peak Tracking Total 5 | . 5 3 . 3 Tactical Retreats 1 | . 1 . . . Traps | -11 -10 -10 -10 -9 ------- Run | Yrd Mat Min Exi Min Traps Triggered 4 | . 4 . . . Indirectly . | . . . . . Trap Hack Attempts . | . . . . . Triggered . | . . . . . Disarmed . | . . . . . Reprogrammed . | . . . . . Reused . | . . . . . Traps Extracted . | . . . . . Installed . | . . . . . Triggered . | . . . . . Machines | -11 -10 -10 -10 -9 ---------- Run | Yrd Mat Min Exi Min Machines Disabled 2 | . 2 . . . Max in Single Turn 2 | . 2 . . . Machines Repaired . | . . . . . Machines Dismantled . | . . . . . Machines Sabotaged . | . . . . . Overloaded Fab Kills . | . . . . . Hacking | -11 -10 -10 -10 -9 --------- Run | Yrd Mat Min Exi Min Machines Accessed 10 | . 7 1 2 . Terminals 5 | . 5 . . . Fabricators . | . . . . . Repair Stations . | . . . . . Recycling Units 2 | . 2 . . . Scanalyzers . | . . . . . Garrison Access . | . . . . . Total Hacks 27 | . 21 1 5 . Successful 14 | . 8 1 5 . Failed 13 | . 13 . . . Catastrophic 1 | . 1 . . . Database Lockouts . | . . . . . Manual 18 | . 17 . 1 . Terminals 16 | . 16 . . . Fabricators . | . . . . . Repair Stations . | . . . . . Recycling Units 5 | . 5 . . . Scanalyzers . | . . . . . Garrison Access . | . . . . . Terminal Hacks 6 | . . 1 5 . Record 4 | . . . 4 . Open Door 1 | . . 1 . . Derelict Proto ID Bank 1 | . . . 1 . Fabricator Hacks . | . . . . . Repair Station Hacks . | . . . . . Recycling Unit Hacks 1 | . 1 . . . Retrieve Components 1 | . 1 . . . Scanalyzer . | . . . . . Garrison Access Hacks . | . . . . . Unauthorized Hacks 7 | . 7 . . . Terminals 6 | . 6 . . . Assimilate 2 | . 2 . . . Botnet 3 | . 3 . . . Operators 1 | . 1 . . . Fabricators . | . . . . . Repair Stations . | . . . . . Recycling Units 1 | . 1 . . . Tunnel 1 | . 1 . . . Scanalyzers . | . . . . . Garrison Access . | . . . . . Data Cores Recovered . | . . . . . Used . | . . . . . Hacking Detections 7 | . 7 . . . Full Trace Events 1 | . 1 . . . Feedback Events . | . . . . . Feedback Blocked . | . . . . . Robot Schematics Acquired . | . . . . . Robots Built . | . . . . . Authchips . | . . . . . Time . | . . . . . Total Robot Build Rating . | . . . . . Part Schematics Acquired . | . . . . . Parts Built . | . . . . . Authchips . | . . . . . Time . | . . . . . Total Part Build Rating . | . . . . . Parts Repaired . | . . . . . Time . | . . . . . Parts Recycled . | . . . . . Recycled Matter . | . . . . . Retrieved Matter . | . . . . . Retrieved Components 3 | . 3 . . . Parts Scanalyzed . | . . . . . Part Schematics Acquired . | . . . . . Parts Damaged . | . . . . . Bothacking | -11 -10 -10 -10 -9 ------------ Run | Yrd Mat Min Exi Min Used RIF Installer . | . . . . . Robots Hacked . | . . . . . Non-combat . | . . . . . Combat . | . . . . . Robot Hacks Applied . | . . . . . Relay Couplers Released . | . . . . . Fabnet Peak Effective % . | . . . . . Robots Rewired . | . . . . . Allies Hacked . | . . . . . Hacks Repelled . | . . . . . Allies | -11 -10 -10 -10 -9 -------- Run | Yrd Mat Min Exi Min Total Allies 3 | . . 3 . . Largest Group 3 | . . 3 3 3 Highest-Rated Group 40 | . . 40 40 40 Highest-Rated Ally 16 | . . 16 16 16 Total Orders . | . . . . . Ally Attacks 20 | . . 4 . 16 Total Damage 195 | . . 49 . 146 Kills 4 | . . 3 . 1 Allies Corrupted . | . . . . . Allies Melted . | . . . . . Intel | -11 -10 -10 -10 -9 ------- Run | Yrd Mat Min Exi Min Robot Analysis Total . | . . . . . Derelict Logs Recovered 2 | . . 2 . . Drone Launches . | . . . . . Drone Recoveries . | . . . . . Exploration | -11 -10 -10 -10 -9 ------------- Run | Yrd Mat Min Exi Min Turns Passed 6292 | . 2605 2341 866 480 Spaces Moved 1688 | 1 654 605 332 96 Core . | . . . . . Treads 828 | . 572 256 . . Legs 778 | 1 . 349 332 96 Wheels 82 | . 82 . . . Hover . | . . . . . Flight . | . . . . . Fastest Speed 120 | 120 160 260 260 330 Average Speed 345 | 120 340 380 260 465 Slowest Speed 480 | 120 480 480 260 470 Overloaded Moves . | . . . . . Propulsion Burnouts . | . . . . . Robots Hopped . | . . . . . Cave-ins Triggered . | . . . . . Exploration Rate (%) 56 | 2 87 99 70 26 Regions Visited 4 Branch Regions 3 Pre-discovered Areas 3 | . 1 1 1 . Known Exits Taken . | . . . . . Unknown Exits Taken 4 | 1 1 1 1 . Scrap Searched 1 | . . 1 . . Spaces Dug . | . . . . . Terrain Destroyed 25 | . 25 . . . Melee . | . . . . . Projectile . | . . . . . AOE 25 | . 25 . . . Terrain Rammed . | . . . . . Walls Destroyed . | . . . . . Machines Disabled . | . . . . . Actions | -11 -10 -10 -10 -9 --------- Run | Yrd Mat Min Exi Min Total 1941 | . 846 637 336 122 Wait 76 | . 46 9 . 21 Move 1684 | . 653 604 331 96 Hop . | . . . . . Pick Up 33 | . 23 6 4 . Fast Attach 5 | . 5 . . . Attach 8 | . 5 2 . 1 Detach 1 | . 1 . . . Swap 7 | . 7 . . . Drop 16 | . 7 8 1 . Fire 110 | . 99 7 . 4 Melee . | . . . . . Ram . | . . . . . Kick 1 | . . 1 . . Crush . | . . . . . Escape Stasis . | . . . . . Rewire . | . . . . . Trap . | . . . . . Miscellaneous . | . . . . . Route ------- -11/Scrapyard -10/Materials (discovered 4 exits: [*Mat x2] / *Min x2) -10/Mines (discovered 4 exits: [*Mat x2] / *Exi / [*Sub]) -10/Exiles -9/Mines History --------- Turn | Location | Event 1 | -11/Scrapyard | Discovered new exit (range 0) 1 | -11/Scrapyard | Entered Materials 315 | -10/Materials | Build established: Mutant 1001 | -10/Materials | Discovered new exit (range 16) 1182 | -10/Materials | Discovered new exit (range 15) 1601 | -10/Materials | Core integrity fell below 50% 1639 | -10/Materials | Discovered new exit (range 15) 2310 | -10/Materials | Discovered new exit (range 16) 2606 | -10/Materials | Entered Mines 2631 | -10/Mines | Found the Drone Emporium 2635 | -10/Mines | Met a Derelict bent on vengeance 2678 | -10/Mines | Found Prototype Device 3569 | -10/Mines | Learned location of Zion (-6) 3665 | -10/Mines | Discovered new exit (range 8) 3703 | -10/Mines | Discovered new exit (range 6) 3852 | -10/Mines | Found a damaged Exp. Sensor Array with a note attached 3885 | -10/Mines | Discovered new exit (range 12) 3928 | -10/Mines | Assisted by bots powering up and referring to "LRC-V3" 4932 | -10/Mines | Deemed a non-threat by the Exiles lab entrance 4934 | -10/Mines | Discovered new exit (range 5) 4947 | -10/Mines | Entered Exiles 4947 | -10/Exiles | Accompanied by 3 allies 5015 | -10/Exiles | Met 8R-AWN 5054 | -10/Exiles | Met EX-HEX 5179 | -10/Exiles | Met EX-DEC 5400 | -10/Exiles | Met EX-BIN 5429 | -10/Exiles | Aligned with FarCom system 5431 | -10/Exiles | Given EX-Vault access code 5496 | -10/Exiles | Opened EX-Vault 5544 | -10/Exiles | Found YOLO Cannon 5599 | -10/Exiles | Warned to stay clear of 0b10 Research branches 5779 | -10/Exiles | Discovered new exit (range 11) 5813 | -10/Exiles | Left Exiles lab with YOLO Cannon 5813 | -10/Exiles | Entered Mines 5813 | -9/Mines | Accompanied by 3 allies 6292 | -9/Mines | Core integrity fell below 20% 6293 | -9/Mines | Destroyed by YI-UF0 with YI-UF0's Doublenader Last Messages --------------- 05779_ EXIT=FOUND LOCATION=UNKNOWN GOAL=ESCAPE 05813_ Receiving FarCom transmissions... 05825_ Destroyed Flight Unit. 05827_ Trooper 1b destroyed. 05834_ Mercenary 1a destroyed. 05834_ S-10 Pest destroyed. 05834_ Switching to secondary target: S-10 Pest. 05836_ S-10 Pest destroyed. 05837_ Critical hit (Destroy). 05837_ Carbon-fiber Leg destroyed. 05839_ Ion Engine destroyed. 05840_ S-10 Pest destroyed. 05843_ Acquired 18 matter. 06136_ The unstable cave ceiling collapses. 06287_ T-07 Excavator destroyed. 06289_ YI-UF0: "KABOOM!" 06289_ Trooper 1a destroyed. 06293_ Hvy. Assault Rifle destroyed. Map ----- +----------------------------------------------------+ | | | ?????????????????????????????????????????????????? | | ?????????????????????????????????????????????????? | | ?????????????????????????????????????######?????## | | ????????????????????????????????????## ##????# | | ???????????????????????????????????## [=#????# | | ????????????????????###?????######## [%###### | | ???????????????????## ##????# =!%[*%= | | ???????????????????# #????# ## ######## | | ??????????????????## #????# #########??????## | | ???????????????#### #????## ##???????????????? | | ??????????????## ##????# #????????????????? | | ??????????????# ###### #????????????????? | | ??????????????# #????????????????? | | ??????????????# ##????????????????? | | ??????????????# ## ###?????????????????? | | ??????????????# ### ## #???????????????????? | | ??????????????#####?## ## #???????????????????? | | ?????????????????????# ## #???????????????????? | | ?????????????????????## ## #???????????????????? | | ??????????????????????# ## ?#?????????????????? | | ?????????????????????## ## #?????????????????? | | ????????#########?#### ##????????????????? | | ????????# ## ### ##???????????????? | | ????????# = #???????????????? | | ????????# """ @ ##???????????????? | | ????????## """ ##????????????????? | | ?????????# """ ##????????????????? | | ?????????## ## # % ##?????????????????? | | ??????????###### ## = #??????????????????? | | ???????????????####### #??????????????????? | | ?????????????????????# #??????????????????? | | ?????????????????????# ?????????????????? | | ?????????????????????## ????????????????? | | ??????????????????????# ???????????????? | | ?????????????????????? g #####??????????????? | | ?????????????????????? #??????????????????? | | ?????????????????????? ??????????????????? | | ?????????????????????? ??????????????????? | | ????????????????????? # #?????????????????? | | ??????????????????????? ? ????????????????????? | | ?????????????????????????????????????????????????? | | ?????????????????????????????????????????????????? | | ?????????????????????????????????????????????????? | | ?????????????????????????????????????????????????? | | ?????????????????????????????????????????????????? | | ?????????????????????????????????????????????????? | | ?????????????????????????????????????????????????? | | ?????????????????????????????????????????????????? | | ?????????????????????????????????????????????????? | +----------------------------------------------------+ Best States ------------- Heat Dissipation 25 Energy Generation 10 Energy Capacity 250 Matter Stores 300 Matter Capacity 300 Sight Range 16 Terrain Scan Density 10 Evasion (%) 40 Targeting Accuracy 5 Recoil Reduction 2 Item Schematics ----------------- None Robot Schematics ------------------ None Fabricated ------------ Nothing Alien Tech Used ----------------- None Achievements -------------- None Challenges ------------ None Game ------ Seed LightpackWaveNeutralizer Manual? 0 Play Time 00:15:10 Cumulative 125.4 hours Start 2024.11.22 @ 06:49:38 End 2024.11.22 @ 07:04:38 Sessions 1 Manual Loads 0 Difficulty Rogue Special Mode None Game No. 234 Rogue 234 Adventurer 0 Explorer 0 Win Type - Total 0 Types 0/0/0/0/0/0/0/0/0 Lore% 43 Gallery% 40 Achievement% 36 Wizard Run 0 Options --------- Layout 0 ASCII 0 Keyboard 0 Movement Mouse Keybinds 0 Fullscreen 1 Font 24/Smallcaps Map View 91x25 Zoom Use 94% Tactical HUD 1 Map Filters NONE Filters NONE Steam 1 RUN: 6f586577-1aa6-472f-9a7e-5dfef7d5baef